bitfinex/quotes_SOLUSD_20250418
["timestamp","ask_amount","ask_price","bid_price","bid_amount"]
[1744985848607,0.14216157,134.0,133.96,23.46439025]
[1744985849119,23.54355182,134.0,133.96,23.46439025]
[1744985850100,0.14216157,134.0,133.96,23.46439025]
[1744985850294,0.14216157,134.0,133.96,0.063]
[1744985850295,23.40139025,133.99,133.96,0.063]
[1744985850835,23.40139025,133.99,133.96,7.52791489]
[1744985851022,0.14216157,134.0,133.96,7.52791489]
[1744985851615,23.54355182,134.0,133.96,7.52791489]
[1744985853206,23.40139025,133.99,133.96,7.52791489]
[1744985854435,23.54355182,133.98,133.96,0.063]
[1744985854644,23.54355182,133.97,133.96,0.063]
[1744985854814,26.30083857,133.97,133.96,0.063]
[1744985855129,44.16046504,133.97,133.96,0.063]
[1744985855336,18.16046504,133.97,133.96,0.063]
[1744985857726,62.8101139,133.97,133.96,0.063]
[1744985860416,44.27447159,133.97,133.96,0.063]
[1744985860618,26.42648471,133.94,133.93,0.063]
[1744985860840,60.05613357,133.94,133.93,0.063]
[1744985861050,75.03282715,133.94,133.93,0.063]
[1744985861417,77.7901139,133.94,133.93,0.063]
[1744985862143,85.25614346,133.94,133.93,0.063]
[1744985862341,0.42648471,133.93,133.92,0.063]
[1744985862546,15.40317829,133.93,133.92,0.063]
[1744985863046,34.05282715,133.93,133.92,0.063]
[1744985863354,68.68058602,133.93,133.92,0.063]
[1744985863849,76.14717304,133.93,133.92,0.063]
[1744985864146,76.14717304,133.93,133.9,0.063]
[1744985864352,91.92329927,133.91,133.9,0.063]
[1744985864650,65.92329927,133.91,133.9,0.063]
[1744985864844,68.68058602,133.91,133.9,0.063]
[1744985866346,45.25700317,133.91,133.9,0.063]
[1744985866536,68.68058602,133.91,133.9,0.063]
[1744985866940,65.92329927,133.91,133.9,0.063]
[1744985869150,68.66751778,133.91,133.9,0.063]
[1744985870048,42.49971642,133.91,133.9,0.063]
[1744985871165,313.7,133.94,133.9,0.063]
[1744985871346,23.42358285,133.91,133.9,0.063]
[1744985871746,23.42358285,133.92,133.9,0.063]
[1744985872152,0.14216157,133.91,133.9,0.063]
[1744985872364,23.42358285,133.92,133.9,0.063]
[1744985874964,273.78,133.94,133.91,23.42358285]
[1744985875169,14.98,133.94,133.92,23.42358285]
[1744985875545,14.98,133.94,133.91,23.42358285]
[1744985875750,23.42358285,133.93,133.9,7.53125989]
[1744985876356,0.14216157,133.93,133.9,7.53125989]
[1744985876570,23.56574442,133.93,133.9,7.53125989]
[1744985876872,0.14216157,133.93,133.9,7.53125989]
[1744985877245,38.40358285,133.94,133.9,23.48658285]
[1744985878469,1.0,134.03,133.92,23.42358285]
[1744985878671,33.56964886,134.01,133.92,23.42358285]
[1744985878969,23.42358285,133.97,133.92,23.42358285]
[1744985879472,23.42358285,133.97,133.94,7.46602956]
[1744985880376,38.34358285,133.96,133.94,7.46602956]
[1744985880578,23.42358285,133.95,133.94,7.46602956]
[1744985880777,23.42358285,133.95,133.92,7.46714456]
[1744985882272,38.34358285,133.96,133.92,7.46714456]
[1744985883173,29.89475415,133.96,133.92,7.46714456]
[1744985883871,15.11691572,133.95,133.92,7.46714456]
[1744985884173,0.14216157,133.92,133.9,7.53097569]
[1744985884374,15.11691572,133.92,133.9,7.53097569]
[1744985884778,14.97475415,133.91,133.9,7.53097569]
[1744985884965,30.03691572,133.91,133.9,0.063]
[1744985885155,38.48206238,133.91,133.9,0.063]
[1744985886167,38.76638552,133.91,133.9,0.063]
[1744985886956,38.48206238,133.91,133.9,0.063]
[1744985887265,14.92,133.91,133.9,0.063]
[1744985888574,14.92,133.91,133.9,7.53125989]
[1744985894289,14.92,133.91,133.9,0.063]
[1744985899195,38.48206238,133.91,133.9,0.063]
[1744985899883,41.23783422,133.91,133.9,0.063]
[1744985900480,41.52215736,133.91,133.9,0.063]
[1744985902285,109.59170703,133.91,133.9,0.063]
[1744985903405,43.67577184,133.91,133.9,0.063]
[1744985903595,43.81793341,133.91,133.9,0.063]
[1744985903793,67.23783422,133.91,133.9,0.063]
[1744985903968,67.52215736,133.91,133.9,0.063]
[1744985904683,44.64964886,133.89,133.88,1.6671186]
[1744985904884,70.96748308,133.89,133.88,1.6671186]
[1744985905063,71.25180622,133.89,133.88,1.6671186]
[1744985906176,3.18225655,133.89,133.88,1.6671186]
[1744985906383,26.60215736,133.89,133.88,1.6671186]
[1744985906883,26.17567265,133.89,133.88,1.6671186]
[1744985907477,26.60215736,133.89,133.88,1.6671186]
[1744985907678,52.60215736,133.89,133.88,1.6671186]
[1744985908688,28.75577184,133.89,133.88,1.6671186]
[1744985909188,52.31783422,133.89,133.88,1.6671186]
[1744985909381,28.89793341,133.89,133.88,1.6671186]
[1744985909581,52.31783422,133.89,133.88,1.6671186]
[1744985910692,52.60215736,133.89,133.88,1.6671186]
[1744985910873,71.25180622,133.89,133.88,1.6671186]
[1744985913889,45.25180622,133.89,133.88,1.6671186]
[1744985915498,3.18225655,133.89,133.88,1.6671186]
[1744985915676,2.75577184,133.89,133.88,1.6671186]
[1744985915997,52.31783422,133.89,133.88,1.6671186]
[1744985916981,52.60215736,133.89,133.88,1.6671186]
[1744985917185,71.25180622,133.89,133.88,1.6671186]
[1744985919578,45.25180622,133.89,133.88,1.6671186]
[1744985921599,52.7206239,133.89,133.88,1.6671186]
[1744985922374,52.7206239,133.89,133.84,0.063]
[1744985922597,23.84638552,133.85,133.84,0.063]
[1744985922797,38.76638552,133.85,133.84,0.063]
[1744985924783,38.48206238,133.85,133.84,0.063]
[1744985925295,30.06280903,133.85,133.84,0.063]
[1744985928216,15.00064746,133.89,133.84,15.06364746]
[1744985928391,15.00064746,133.88,133.84,15.06364746]
[1744985928588,15.00064746,133.87,133.84,0.063]
[1744985929210,15.00064746,133.88,133.84,15.06364746]
[1744985930192,15.00064746,133.88,133.85,7.47104968]
[1744985930602,0.14216157,133.87,133.85,7.47104968]
[1744985932613,0.14216157,133.87,133.84,15.06364746]
[1744985932806,26.0,133.89,133.85,15.00064746]
[1744985933115,14.92,133.9,133.87,15.00064746]
[1744985934111,14.92,133.9,133.86,15.00064746]
[1744985934712,14.92,133.9,133.87,7.46993351]
[1744985935717,2.75204201,133.89,133.87,7.46993351]
[1744985937221,29.92064746,133.9,133.87,7.46993351]
[1744985938522,14.92,133.9,133.87,22.47058097]
[1744985940396,14.92,133.9,133.88,15.00064746]
[1744985940720,14.92,133.93,133.89,15.00064746]
[1744985940915,14.92,133.93,133.9,15.00064746]
[1744985941094,14.92,133.93,133.92,15.00064746]
[1744985941819,14.92,133.93,133.9,15.00064746]
[1744985942701,14.92,133.93,133.91,7.46770218]
[1744985945622,14.92,133.93,133.9,22.46867152]
[1744985945808,15.14280903,133.92,133.87,15.00064746]
[1744985946220,15.14280903,133.9,133.87,7.46993351]
[1744985946422,15.00064746,133.89,133.86,7.47026256]
[1744985946724,15.14280903,133.87,133.84,7.53438363]
[1744985946906,15.14280903,133.87,133.84,0.063]
[1744985947430,0.14216157,133.87,133.84,0.063]
[1744985948327,15.14280903,133.87,133.84,0.063]
[1744985949202,23.57434296,133.87,133.84,0.063]
[1744985949403,0.14216157,133.87,133.84,0.063]
[1744985954610,0.14216157,133.87,133.84,23.49518139]
[1744985955315,0.14216157,133.87,133.84,0.063]
[1744985957045,0.14216157,133.87,133.84,7.53460789]
[1744985957419,0.14216157,133.87,133.84,30.96678928]
[1744985957741,14.92,133.88,133.86,23.43218139]
[1744985958041,14.92,133.88,133.87,23.43218139]
[1744985958539,14.92,133.92,133.87,23.43218139]
[1744985958741,14.92,133.92,133.89,23.43218139]
[1744985959038,14.92,133.92,133.9,7.46825989]
[1744985959447,0.14216157,133.91,133.9,7.46825989]
[1744985959624,14.92,133.92,133.9,7.46825989]
[1744985959943,0.14216157,133.91,133.9,30.90044128]
[1744985960132,14.92,133.92,133.9,30.90044128]
[1744985961046,15.06216157,133.92,133.91,23.43218139]
[1744985961945,15.06216157,133.92,133.9,30.90044128]
[1744985965542,14.92,133.92,133.9,30.90044128]
[1744985965745,14.92,133.92,133.91,23.43218139]
[1744985967336,14.92,133.92,133.91,46.86436278]
[1744985967639,0.03,133.94,133.91,73.00132043]
[1744985967839,0.03,133.94,133.93,23.43218139]
[1744985969652,0.03,133.94,133.93,30.89876841]
[1744985975363,0.03,133.94,133.93,22.43336302]
[1744985984351,0.03,133.94,133.92,7.46714456]
[1744985984660,0.03,133.94,133.93,14.966776]
[1744985986168,0.03,133.94,133.93,22.43336302]
[1744986003257,0.03,133.94,133.92,7.46690508]
[1744986003453,15.04216157,133.93,133.92,7.46690508]
[1744986003864,15.04216157,133.93,133.91,7.46770218]
[1744986004386,0.14216157,133.92,133.91,7.46770218]
[1744986004560,0.14216157,133.92,133.9,22.43475618]
[1744986008968,15.10893757,133.92,133.89,7.46853056]
[1744986009191,0.14216157,133.89,133.86,7.47049155]
[1744986009489,0.14216157,133.89,133.86,22.43726755]
[1744986011583,15.10893757,133.89,133.86,7.47049155]
[1744986011778,14.9,133.88,133.86,7.47049155]
[1744986013492,15.10893757,133.87,133.85,7.47083653]
[1744986014280,14.966776,133.87,133.85,7.47083653]
[1744986014583,0.14216157,133.86,133.84,7.53444795]
[1744986016086,15.10893757,133.86,133.84,0.063]
[1744986016973,0.28432314,133.85,133.84,0.063]
[1744986017162,15.39326071,133.85,133.84,0.063]
[1744986018785,0.14216157,133.85,133.84,0.063]
[1744986018963,40.9,133.88,133.84,0.063]
[1744986019162,0.14216157,133.87,133.84,0.063]
[1744986019364,15.10893757,133.87,133.84,0.063]
[1744986020196,14.966776,133.86,133.84,0.063]
[1744986020398,15.10893757,133.85,133.84,0.063]
[1744986023608,41.39326071,133.85,133.84,0.063]
[1744986024417,60.04290957,133.85,133.84,0.063]
[1744986026014,34.04290957,133.85,133.84,0.063]
[1744986030616,93.91001357,133.85,133.84,0.063]
[1744986030985,34.04290957,133.85,133.84,0.063]
[1744986031693,35.04290957,133.85,133.84,0.063]
[1744986031911,34.04290957,133.85,133.84,0.063]
[1744986032217,35.04290957,133.85,133.84,0.063]
[1744986032391,34.04290957,133.85,133.84,0.063]
[1744986032591,35.04290957,133.85,133.84,0.063]
[1744986034708,94.91001357,133.85,133.84,0.063]
[1744986035396,93.91001357,133.85,133.84,0.063]
[1744986035706,94.91001357,133.85,133.82,0.063]
[1744986036014,41.39326071,133.83,133.82,0.063]
[1744986036208,56.31326071,133.83,133.82,0.063]
[1744986037820,74.96290957,133.83,133.82,0.063]
[1744986038688,26.42648471,133.79,133.78,0.063]
[1744986038914,41.39326071,133.79,133.78,0.063]
[1744986039120,60.04290957,133.79,133.78,0.063]
[1744986045221,233.04,133.83,133.78,0.063]
[1744986045519,15.06216157,133.79,133.78,0.063]
[1744986045719,14.92,133.79,133.78,0.063]
[1744986046742,15.34648471,133.79,133.78,0.063]
[1744986047026,41.34648471,133.79,133.78,0.063]
[1744986047532,56.31326071,133.79,133.78,0.063]
[1744986048028,41.34648471,133.79,133.78,0.063]
[1744986048700,56.31326071,133.79,133.78,0.063]
[1744986049932,41.34648471,133.79,133.78,0.063]
[1744986050503,15.06216157,133.79,133.78,0.063]
[1744986050726,14.92,133.79,133.78,0.063]
[1744986051236,14.92,133.79,133.78,7.53795888]
[1744986052837,14.92,133.79,133.78,22.50473488]
[1744986053204,248.29109914,133.83,133.78,22.50473488]
[1744986053205,247.96,133.83,133.78,41.19213209]
[1744986053429,247.96,133.83,133.82,14.966776]
[1744986053821,247.96,133.83,133.81,14.966776]
[1744986054232,247.96,133.83,133.78,26.22535609]
[1744986054429,247.96,133.83,133.81,14.966776]
[1744986054636,262.926776,133.83,133.79,7.47440017]
[1744986054939,0.42648471,133.82,133.79,7.47440017]
[1744986057138,0.42648471,133.82,133.78,0.063]
[1744986057336,0.42648471,133.82,133.78,15.029776]
[1744986057539,0.14216157,133.8,133.78,0.063]
[1744986058137,0.14216157,133.8,133.78,15.029776]
[1744986058348,0.14216157,133.8,133.78,0.063]
[1744986058512,0.42648471,133.8,133.78,0.063]
[1744986059512,0.14216157,133.8,133.78,15.029776]
[1744986061340,0.14216157,133.8,133.79,7.47440017]
[1744986063115,233.04,133.83,133.79,41.12717661]
[1744986063320,247.96,133.83,133.8,14.966776]
[1744986063517,247.96,133.83,133.78,0.063]
[1744986063518,26.0,133.8,133.78,7.53771719]
[1744986063722,0.42648471,133.79,133.78,7.53771719]
[1744986065232,15.39326071,133.79,133.78,0.063]
[1744986067039,34.04290957,133.79,133.78,0.063]
[1744986067230,0.42648471,133.79,133.78,0.063]
[1744986067544,40.966776,133.8,133.78,7.53795888]
[1744986067545,26.0,133.8,133.78,7.53795888]
[1744986067719,0.14216157,133.79,133.78,7.53795888]
[1744986069247,15.06216157,133.79,133.78,7.53795888]
[1744986069744,15.06216157,133.79,133.78,0.063]
[1744986070928,15.06216157,133.79,133.78,15.029776]
[1744986071743,0.14216157,133.81,133.79,7.47440017]
[1744986071946,80.93,133.88,133.8,14.966776]
[1744986072250,80.93,133.88,133.79,26.16040061]
[1744986072251,14.92,133.85,133.79,26.16040061]
[1744986072549,14.92,133.85,133.79,63.5324015]
[1744986073442,14.92,133.85,133.84,14.966776]
[1744986073823,14.92,133.85,133.84,22.43838389]
[1744986075047,14.95,133.88,133.84,100.98450761]
[1744986075252,14.95,133.88,133.87,14.966776]
[1744986075548,0.14216157,133.87,133.85,14.966776]
[1744986077855,15.09216157,133.88,133.87,7.46993351]
[1744986078239,14.95,133.88,133.87,22.43670951]
[1744986084644,1e-08,133.89,133.87,22.43670951]
[1744986084849,1e-08,133.89,133.88,14.966776]
[1744986086867,1e-08,133.89,133.88,22.43615156]
[1744986088261,0.45648471,133.94,133.88,138.32357226]
[1744986088262,0.03,133.94,133.88,138.32357226]
[1744986088440,0.03,133.94,133.93,14.966776]
[1744986088642,0.03,133.94,133.92,14.966776]
[1744986088863,0.03,133.94,133.93,7.46658702]
[1744986090363,0.17216157,133.94,133.93,7.46658702]
[1744986090863,0.03,133.94,133.93,22.43336302]
[1744986092975,1e-08,133.94,133.93,22.43336302]
[1744986095867,1e-08,133.94,133.93,7.46658702]
[1744986096954,1e-08,133.94,133.93,22.43336302]
[1744986115895,14.93,133.97,133.93,59.74947943]
[1744986116069,1e-08,133.97,133.96,14.966776]
[1744986116274,1e-08,133.98,133.96,14.966776]
[1744986116474,1e-08,133.98,133.97,14.966776]
[1744986117581,0.03,134.0,133.97,22.43113369]
[1744986117773,0.03,134.0,133.99,14.966776]
[1744986117975,0.03,134.01,133.99,14.966776]
[1744986118180,0.03,134.01,133.98,59.867104]
[1744986118181,1e-08,134.01,134.0,14.966776]
[1744986118399,1e-08,134.02,134.0,14.966776]
[1744986118697,1e-08,134.02,134.01,14.966776]
[1744986119596,1e-08,134.02,134.01,22.42890569]
[1744986122177,1e-08,134.02,134.01,7.46212969]
[1744986122991,0.14216158,134.02,134.0,7.46253463]
[1744986123389,0.14216157,134.0,133.98,7.46380056]
[1744986123591,14.966776,134.0,133.98,7.46380056]
[1744986123907,29.846776,134.0,133.98,7.46380056]
[1744986124194,29.846776,134.0,133.96,7.46491489]
[1744986124573,29.846776,134.0,133.96,22.43169089]
[1744986126306,14.88,134.0,133.96,22.43169089]
[1744986127203,0.14216157,133.99,133.96,7.46491489]
[1744986128188,0.14216157,133.99,133.96,22.43169089]
[1744986128499,14.88,134.0,133.98,14.966776]
[1744986129592,14.88,134.0,133.99,14.966776]
[1744986129982,14.88,134.0,133.99,7.46324352]
[1744986130185,14.88,134.0,133.99,22.43001952]
[1744986136420,14.88,134.0,133.99,7.46324352]
[1744986137104,14.88,134.0,133.99,22.43001952]
[1744986137593,14.88,134.0,133.99,14.966776]
[1744986137996,14.88,134.0,133.98,14.966776]
[1744986138986,14.88,134.0,133.93,63.46598968]
[1744986138987,15.30648471,134.0,133.93,63.46598968]
[1744986139309,14.966776,133.98,133.94,14.966776]
[1744986139495,0.14216157,133.97,133.93,33.63324355]
[1744986139701,1.75196157,133.97,133.93,18.66646755]
[1744986139895,1.75196157,133.97,133.93,33.63324355]
[1744986140303,1.75196157,133.97,133.93,33.69624355]
[1744986140811,1.75196157,133.97,133.94,14.966776]
[1744986142696,1.75196157,133.97,133.95,7.46547219]
[1744986149508,16.71873757,133.97,133.94,7.46578513]
[1744986149692,1.75196157,133.97,133.94,7.46578513]
[1744986149895,16.71873757,133.97,133.94,7.46578513]
[1744986150107,0.28432314,133.96,133.93,7.52931071]
[1744986150525,0.28432314,133.96,133.93,22.49608671]
[1744986151998,0.14216157,133.95,133.93,22.49608671]
[1744986158739,14.88,133.99,133.94,14.966776]
[1744986158933,14.88,133.99,133.97,14.966776]
[1744986159410,14.88,133.99,133.96,14.966776]
[1744986160019,14.88,133.99,133.97,14.966776]
[1744986160927,14.88,133.99,133.96,14.966776]
[1744986161110,15.10893757,133.98,133.93,33.69624355]
[1744986161438,15.10893757,133.96,133.93,0.063]
[1744986161729,0.14216157,133.96,133.94,14.966776]
[1744986162308,0.14216157,133.96,133.93,15.029776]
[1744986163029,0.14216157,133.96,133.94,14.966776]
[1744986163410,0.14216157,133.97,133.94,14.966776]
[1744986163822,15.39326071,133.97,133.93,0.063]
[1744986164911,15.39326071,133.95,133.93,0.063]
[1744986165126,15.02216157,133.94,133.93,0.063]
[1744986165828,15.30648471,133.94,133.93,0.063]
[1744986166038,30.27326071,133.94,133.93,0.063]
[1744986166423,33.02755771,133.94,133.93,0.063]
[1744986168039,18.06078171,133.94,133.93,0.063]
[1744986170936,17.77645857,133.94,133.93,0.063]
[1744986171440,17.634297,133.94,133.93,0.063]
[1744986171940,17.77645857,133.94,133.93,0.063]
[1744986172524,17.77645857,133.94,133.93,7.52958702]
[1744986173634,15.02216157,133.94,133.93,7.52958702]
[1744986174447,15.02216157,133.94,133.93,22.49636302]
[1744986178542,15.02216157,133.94,133.93,7.52958702]
[1744986187665,14.88,133.94,133.93,22.49636302]
[1744986188533,14.88,133.98,133.93,41.16283057]
[1744986188754,14.88,133.98,133.96,14.966776]
[1744986188959,14.88,133.98,133.95,14.966776]
[1744986189560,14.88,133.98,133.96,7.46491489]
[1744986189768,14.88,133.98,133.96,22.43169089]
[1744986190251,14.88,133.98,133.96,7.46491489]
[1744986191753,14.88,133.98,133.96,22.43169089]
[1744986191956,14.88,133.98,133.96,7.46491489]
[1744986196269,14.88,133.98,133.96,14.966776]
[1744986196566,14.88,133.98,133.97,14.966776]
[1744986198671,14.88,133.98,133.97,22.43113369]
[1744986199853,1.6371,134.01,133.97,41.09202792]
[1744986200064,2.75359876,134.0,133.99,14.966776]
[1744986200974,2.75359876,134.0,133.99,22.43001952]
[1744986201159,2.75359876,134.0,133.99,7.46324352]
[1744986201362,14.966776,134.01,133.99,7.46324352]
[1744986202979,0.14216157,134.01,133.98,7.46380056]
[1744986204893,0.28432314,134.01,133.98,7.46380056]
[1744986205095,0.14216157,133.99,133.95,33.62996957]
[1744986205387,0.14216157,133.99,133.95,18.66319357]
[1744986205578,0.14216157,133.99,133.96,14.966776]
[1744986206176,0.14216157,133.99,133.97,7.46435769]
[1744986209107,15.10893757,133.99,133.94,7.46602956]
[1744986209281,15.10893757,133.97,133.94,7.46602956]
[1744986210384,14.966776,133.96,133.94,7.46602956]
[1744986212697,14.966776,133.96,133.93,7.52958702]
[1744986214995,15.10893757,133.97,133.93,15.029776]
[1744986217091,15.10893757,133.97,133.94,7.46602956]
[1744986221903,0.42648471,133.97,133.94,7.46602956]
[1744986224806,15.39326071,133.97,133.94,7.46602956]
[1744986225719,15.39326071,133.97,133.93,7.52958702]
[1744986226015,14.966776,133.96,133.93,7.52958702]
[1744986227208,15.39326071,133.97,133.93,7.52958702]
[1744986227513,14.88,133.96,133.93,22.49636302]
[1744986228914,14.88,133.96,133.93,7.52958702]
[1744986229218,29.846776,133.96,133.93,7.52958702]
[1744986234801,14.88,133.96,133.93,7.52958702]
[1744986240749,14.88,133.96,133.94,14.966776]
[1744986241034,14.88,133.96,133.95,14.966776]
[1744986241249,14.88,133.96,133.94,14.966776]
[1744986241410,0.14216157,133.97,133.95,22.43177084]
[1744986241810,0.14216157,133.97,133.95,7.46499484]
[1744986246355,40.88,133.98,133.95,7.46499484]
[1744986246533,2.76799807,133.97,133.95,7.46499484]
[1744986247465,2.76799807,133.98,133.95,7.46499484]
[1744986249558,17.73477407,133.98,133.95,7.46499484]
[1744986249859,2.76799807,133.97,133.95,7.46499484]
[1744986250459,2.76799807,133.97,133.94,7.46602956]
[1744986251657,2.76799807,133.97,133.94,14.966776]
[1744986252266,2.76799807,133.97,133.93,0.063]
[1744986252563,2.76799807,133.97,133.95,7.46547219]
[1744986253452,14.966776,133.98,133.95,7.46547219]
[1744986255651,2.7722387,133.97,133.95,7.46547219]
[1744986258053,15.10893757,133.96,133.93,0.063]
[1744986258253,15.10893757,133.96,133.93,7.52937002]
[1744986258556,2.7722387,133.95,133.93,7.52937002]
[1744986261046,2.7722387,133.95,133.93,15.029776]
[1744986262165,2.7722387,133.95,133.93,22.4958819]
[1744986262668,2.7722387,133.95,133.93,7.5291059]
[1744986268479,2.7722387,133.95,133.93,0.063]
[1744986268843,15.10893757,133.96,133.93,0.063]
[1744986270469,29.98893757,133.96,133.93,7.52958702]
[1744986271372,15.02216157,133.96,133.93,7.52958702]
[1744986271971,2.7742736,133.95,133.93,7.52958702]
[1744986272468,15.02216157,133.96,133.93,7.52958702]
[1744986274278,14.966776,133.95,133.93,0.063]
[1744986274779,29.98893757,133.96,133.93,0.063]
[1744986275275,2.77460407,133.95,133.93,0.063]
[1744986280972,2.77460407,133.95,133.93,15.029776]
[1744986281687,2.77460407,133.95,133.94,14.966776]
[1744986282280,2.77460407,133.97,133.94,14.966776]
[1744986282453,2.77460407,133.97,133.95,14.966776]
[1744986282962,14.88,133.98,133.95,14.966776]
[1744986283480,14.88,133.98,133.96,7.46491489]
[1744986283977,29.846776,133.98,133.95,7.46522017]
[1744986285500,2.77562286,133.97,133.95,7.46522017]
[1744986286302,2.91778443,133.96,133.93,0.063]
[1744986287183,0.14216157,133.96,133.93,22.49611904]
[1744986288583,0.14216157,133.97,133.93,41.16258659]
[1744986289484,2.77399196,133.96,133.94,14.966776]
[1744986289675,2.77399196,133.96,133.95,7.46547219]
[1744986290087,2.77399196,133.97,133.95,7.46547219]
[1744986290292,2.77399196,133.97,133.95,22.43224819]
[1744986291288,2.77399196,133.97,133.95,7.46547219]
[1744986292173,29.846776,133.98,133.95,7.46547219]
[1744986294593,14.88,133.98,133.95,7.46547219]
[1744986300293,29.846776,133.98,133.95,7.46547219]
[1744986300975,14.88,133.98,133.95,7.46547219]
[1744986304085,29.846776,133.98,133.95,7.46547219]
[1744986305286,29.846776,133.98,133.93,33.69624355]
[1744986305493,29.846776,133.98,133.94,7.46602956]
[1744986306299,29.846776,133.98,133.94,22.43280556]
[1744986307993,14.86000001,134.02,133.97,14.966776]
[1744986308191,14.86000001,134.02,133.99,14.966776]
[1744986308512,2.7691235,134.01,133.99,14.966776]
[1744986309218,14.86000001,134.02,133.99,14.966776]
[1744986309395,14.86000001,134.02,134.0,7.46268656]
[1744986309914,14.86000001,134.02,134.0,22.42946256]
[1744986310705,14.86000001,134.02,134.01,14.966776]
[1744986310907,14.86000001,134.02,134.01,22.42890569]
[1744986312505,1e-08,134.02,134.01,22.42890569]
[1744986313091,1e-08,134.02,134.01,7.46212969]
[1744986315911,1e-08,134.02,134.01,22.42890569]
[1744986332726,1e-08,134.02,134.01,41.07855455]
[1744986336932,1e-08,134.04,134.02,18.64964886]
[1744986337141,1e-08,134.04,134.03,14.966776]
[1744986338821,1e-08,134.04,134.03,22.42779219]
[1744986345119,1e-08,134.04,134.03,7.46101619]
[1744986348250,1e-08,134.04,134.02,7.46157289]
[1744986348939,1e-08,134.04,134.02,22.42834889]
[1744986358054,1e-08,134.04,133.99,26.12135233]
[1744986358357,14.966776,134.03,133.99,7.46324352]
[1744986359566,14.966776,134.03,133.99,22.43001952]
[1744986359750,15.39326072,134.04,133.99,22.43001952]
[1744986361562,15.39326072,134.04,133.99,41.08812833]
[1744986365671,30.23326072,134.04,133.99,41.08812833]
[1744986366061,29.73326072,134.04,133.99,41.08812833]
[1744986366963,14.966776,134.03,133.99,41.08812833]
[1744986367867,15.12432314,134.04,133.98,7.46350004]
[1744986367868,16.614876,134.01,133.98,7.46350004]
[1744986368167,16.614876,134.01,133.97,22.43113369]
[1744986368468,1.6481,134.01,133.97,22.43113369]
[1744986375973,1.6481,134.01,133.97,41.09202792]
[1744986376973,14.84,134.04,134.0,14.966776]
[1744986377152,14.84,134.04,134.02,14.966776]
[1744986377473,14.84,134.04,133.98,59.867104]
[1744986377474,14.84,134.04,134.01,14.966776]
[1744986379050,14.84,134.04,134.02,22.42834889]
[1744986379577,14.84,134.04,134.02,7.46157289]
[1744986379769,14.84,134.04,134.02,22.42834889]
[1744986383677,14.84,134.04,134.01,14.966776]
[1744986384059,0.14216157,134.03,133.99,22.43001952]
[1744986384265,0.14216157,134.03,133.99,7.46324352]
[1744986384266,15.10893757,134.03,133.99,7.46324352]
[1744986384671,15.10893757,134.03,133.99,22.43001952]
[1744986385180,15.10893757,134.03,133.99,41.08812833]
[1744986386085,15.10893757,134.03,133.98,14.966776]
[1744986388790,15.10893757,134.03,133.99,7.46324352]
[1744986393391,14.966776,134.03,133.99,7.46324352]
[1744986394995,14.98216157,134.04,133.99,7.46324352]
[1744986394996,14.966776,134.02,133.99,7.46324352]
[1744986395404,14.966776,134.02,133.98,26.12289452]
[1744986397999,14.966776,134.02,133.98,41.08967052]
[1744986401605,15.39326071,134.03,133.98,41.08967052]
[1744986402402,0.14216157,134.0,133.96,41.15697813]
[1744986402792,0.14216157,134.0,133.97,14.966776]
[1744986403612,26.28432314,134.01,133.97,14.966776]
[1744986403812,0.14216157,134.0,133.97,14.966776]
[1744986404310,26.28432314,134.01,133.98,22.43057656]
[1744986404311,26.0,134.01,133.98,22.43057656]
[1744986405515,26.0,134.01,133.98,41.09007797]
[1744986406315,1.5383,134.02,133.99,14.966776]
[1744986406616,14.84,134.04,134.01,14.966776]
[1744986406811,40.84,134.04,134.01,14.966776]
[1744986407019,14.84,134.04,134.0,14.966776]
[1744986407218,14.84,134.04,133.96,18.71264886]
[1744986407399,55.806776,134.04,134.0,14.966776]
[1744986408321,55.806776,134.04,134.01,7.46212969]
[1744986410231,40.84,134.04,134.01,7.46212969]
[1744986415221,55.806776,134.04,134.01,7.46212969]
[1744986419327,40.966776,134.04,134.01,7.46212969]
[1744986420022,0.03,134.05,134.02,14.966776]